[Event "Late-Titled-Tuesday-Blitz-October-03-2023"]
[Site "Chess.com"]
[Date "2023.10.03"]
[Round "11"]
[White "Deeper44"]
[Black "ChadBiryani"]
[Result "1-0"]
[WhiteElo "2558"]
[BlackElo "2494"]
[TimeControl "180+1"]
[EndTime "16:04:06 PDT"]
[Termination "Deeper44 won by checkmate"]

1. d4 {[%clk 0:03:00.3]} 1... d5 {[%clk 0:02:48.9]} 2. c4 {[%clk 0:03:01]} 2...
c6 {[%clk 0:02:49]} 3. Nf3 {[%clk 0:03:01.4]} 3... Nf6 {[%clk 0:02:49.2]} 4. Nc3
{[%clk 0:03:00.4]} 4... e6 {[%clk 0:02:48.6]} 5. e3 {[%clk 0:02:58.5]} 5... Nbd7
{[%clk 0:02:48.3]} 6. a3 {[%clk 0:02:57.5]} 6... Bd6 {[%clk 0:02:42.6]} 7. Be2
{[%clk 0:02:54.3]} 7... dxc4 {[%clk 0:02:42]} 8. Bxc4 {[%clk 0:02:54.3]} 8...
O-O {[%clk 0:02:41]} 9. O-O {[%clk 0:02:52.6]} 9... Qc7 {[%clk 0:02:33.8]} 10.
h3 {[%clk 0:02:47.3]} 10... e5 {[%clk 0:02:23.4]} 11. Bd2 {[%clk 0:02:44.8]}
11... exd4 {[%clk 0:02:13.6]} 12. exd4 {[%clk 0:02:40.5]} 12... Nb6 {[%clk
0:02:12.5]} 13. Ba2 {[%clk 0:02:38.1]} 13... Bf5 {[%clk 0:02:11.1]} 14. Rc1
{[%clk 0:02:37.6]} 14... a6 {[%clk 0:02:02.5]} 15. Re1 {[%clk 0:02:28.8]} 15...
Rad8 {[%clk 0:01:57.9]} 16. Bg5 {[%clk 0:02:17.1]} 16... Be7 {[%clk 0:01:44.3]}
17. Qe2 {[%clk 0:02:10.2]} 17... Nc8 {[%clk 0:01:11.9]} 18. b4 {[%clk
0:01:40.5]} 18... h6 {[%clk 0:01:09.6]} 19. Bh4 {[%clk 0:01:38.6]} 19... Rde8
{[%clk 0:00:56.8]} 20. Ne5 {[%clk 0:01:30.3]} 20... Nb6 {[%clk 0:00:48.4]} 21.
Qf3 {[%clk 0:01:06]} 21... Bh7 {[%clk 0:00:40.2]} 22. a4 {[%clk 0:00:46.2]}
22... Qd8 {[%clk 0:00:33.6]} 23. a5 {[%clk 0:00:41.6]} 23... Nbd7 {[%clk
0:00:32.4]} 24. Na4 {[%clk 0:00:26.8]} 24... Bxb4 {[%clk 0:00:19.3]} 25. Nxf7
{[%clk 0:00:26.7]} 25... Rxf7 {[%clk 0:00:15.9]} 26. Bxf7+ {[%clk 0:00:26.5]}
26... Kxf7 {[%clk 0:00:16.1]} 27. Qb3+ {[%clk 0:00:25.8]} 27... Nd5 {[%clk
0:00:09.1]} 28. Bxd8 {[%clk 0:00:25.3]} 28... Rxd8 {[%clk 0:00:09.4]} 29. Red1
{[%clk 0:00:24]} 29... Nf6 {[%clk 0:00:06.4]} 30. Nc5 {[%clk 0:00:24.1]} 30...
Rb8 {[%clk 0:00:04.4]} 31. Nd7 {[%clk 0:00:22.4]} 31... Nxd7 {[%clk 0:00:03.9]}
32. Kh2 {[%clk 0:00:18.7]} 32... Nf6 {[%clk 0:00:04]} 33. f3 {[%clk 0:00:18]}
33... Bf5 {[%clk 0:00:04.2]} 34. Re1 {[%clk 0:00:18.1]} 34... Bd7 {[%clk
0:00:04.3]} 35. g4 {[%clk 0:00:17.5]} 35... Bd6+ {[%clk 0:00:04.6]} 36. Kg1
{[%clk 0:00:17.6]} 36... Kf8 {[%clk 0:00:04.5]} 37. Re5 {[%clk 0:00:17.6]} 37...
Nf4 {[%clk 0:00:04.5]} 38. Rce1 {[%clk 0:00:16.9]} 38... Nxh3+ {[%clk
0:00:04.7]} 39. Kg2 {[%clk 0:00:16.6]} 39... Nf4+ {[%clk 0:00:05]} 40. Kf2
{[%clk 0:00:17.1]} 40... N6d5 {[%clk 0:00:05.3]} 41. Qc2 {[%clk 0:00:16.5]}
41... Bxe5 {[%clk 0:00:04.8]} 42. dxe5 {[%clk 0:00:16.5]} 42... Re8 {[%clk
0:00:05.1]} 43. Re4 {[%clk 0:00:16.2]} 43... Ne6 {[%clk 0:00:04.8]} 44. Qd2
{[%clk 0:00:16.2]} 44... Ng5 {[%clk 0:00:04.9]} 45. Re2 {[%clk 0:00:14.5]} 45...
Ne6 {[%clk 0:00:04.4]} 46. Qb2 {[%clk 0:00:14.1]} 46... Bc8 {[%clk 0:00:03.6]}
47. Qa3+ {[%clk 0:00:13.4]} 47... Kf7 {[%clk 0:00:03.8]} 48. Kg3 {[%clk
0:00:14.3]} 48... Nef4 {[%clk 0:00:04.6]} 49. Re4 {[%clk 0:00:13.7]} 49... g5
{[%clk 0:00:05]} 50. Qd6 {[%clk 0:00:13.1]} 50... Be6 {[%clk 0:00:03.8]} 51. Qc5
{[%clk 0:00:11]} 51... Re7 {[%clk 0:00:04.2]} 52. Rd4 {[%clk 0:00:11.1]} 52...
Rd7 {[%clk 0:00:04.7]} 53. Rd2 {[%clk 0:00:10.7]} 53... Ng6 {[%clk 0:00:04.9]}
54. Rb2 {[%clk 0:00:10.6]} 54... Nxe5 {[%clk 0:00:04.9]} 55. Qa7 {[%clk
0:00:10.6]} 55... Ng6 {[%clk 0:00:02]} 56. Rxb7 {[%clk 0:00:10.7]} 56... Rc7
{[%clk 0:00:01.4]} 57. Rxc7+ {[%clk 0:00:10.6]} 57... Nxc7 {[%clk 0:00:02.3]}
58. Qxc7+ {[%clk 0:00:11.3]} 58... Kf6 {[%clk 0:00:03]} 59. Qxc6 {[%clk
0:00:10.8]} 59... Ne5 {[%clk 0:00:03.5]} 60. Qxa6 {[%clk 0:00:10.2]} 60... Nc4
{[%clk 0:00:02.1]} 61. Qb5 {[%clk 0:00:06.7]} 61... Nd6 {[%clk 0:00:02.5]} 62.
Qb2+ {[%clk 0:00:06.5]} 62... Kf7 {[%clk 0:00:02.5]} 63. a6 {[%clk 0:00:07.4]}
63... Bd5 {[%clk 0:00:02.1]} 64. a7 {[%clk 0:00:07.6]} 64... Ba8 {[%clk
0:00:01.3]} 65. Qe5 {[%clk 0:00:07.1]} 65... Bc6 {[%clk 0:00:02.2]} 66. Qxd6
{[%clk 0:00:07.6]} 66... Ba8 {[%clk 0:00:03]} 67. Qc7+ {[%clk 0:00:07.5]} 67...
Kg6 {[%clk 0:00:03.8]} 68. Qb8 {[%clk 0:00:08.4]} 68... h5 {[%clk 0:00:04.5]}
69. Qg8+ {[%clk 0:00:08.1]} 69... Kf6 {[%clk 0:00:04.7]} 70. Qh8+ {[%clk
0:00:08.6]} 70... Kg6 {[%clk 0:00:04.6]} 71. Qxh5+ {[%clk 0:00:09.1]} 71... Kf6
{[%clk 0:00:05.2]} 72. Qh6+ {[%clk 0:00:09.7]} 72... Kf7 {[%clk 0:00:06]} 73.
Qh7+ {[%clk 0:00:10]} 73... Kf8 {[%clk 0:00:06.3]} 74. Qh8+ {[%clk 0:00:10.3]}
74... Kf7 {[%clk 0:00:06.9]} 75. Qxa8 {[%clk 0:00:10.4]} 75... Kg6 {[%clk
0:00:07.8]} 76. Qc6+ {[%clk 0:00:10.2]} 76... Kg7 {[%clk 0:00:07.6]} 77. Kf2
{[%clk 0:00:10.8]} 77... Kh7 {[%clk 0:00:07.8]} 78. Ke3 {[%clk 0:00:11.5]} 78...
Kg7 {[%clk 0:00:08.5]} 79. Ke4 {[%clk 0:00:12.2]} 79... Kh7 {[%clk 0:00:09]} 80.
Kf5 {[%clk 0:00:13]} 80... Kh8 {[%clk 0:00:09]} 81. Kxg5 {[%clk 0:00:13.5]}
81... Kg7 {[%clk 0:00:09.3]} 82. Kf4 {[%clk 0:00:14.1]} 82... Kf7 {[%clk
0:00:09.8]} 83. Kg3 {[%clk 0:00:14.7]} 83... Ke7 {[%clk 0:00:10.4]} 84. Kf2
{[%clk 0:00:14.9]} 84... Kf7 {[%clk 0:00:11.3]} 85. Ke3 {[%clk 0:00:15.2]} 85...
Ke7 {[%clk 0:00:12.2]} 86. g5 {[%clk 0:00:15.4]} 86... Kf7 {[%clk 0:00:13.1]}
87. f4 {[%clk 0:00:16]} 87... Ke7 {[%clk 0:00:13.7]} 88. f5 {[%clk 0:00:16.7]}
88... Kf7 {[%clk 0:00:14.6]} 89. Qc7+ {[%clk 0:00:16.8]} 89... Kf8 {[%clk
0:00:14.5]} 90. a8=Q# {[%clk 0:00:17.3]} 1-0

[Event "Late-Titled-Tuesday-Blitz-October-03-2023"]
[Site "Chess.com"]
[Date "2023.10.03"]
[Round "11"]
[White "Firouzja2003"]
[Black "ChristopherYoo"]
[Result "0-1"]
[WhiteElo "3123"]
[BlackElo "3023"]
[TimeControl "180+1"]
[EndTime "16:04:20 PDT"]
[Termination "ChristopherYoo won on time"]

1. Nf3 {[%clk 0:03:00]} 1... c5 {[%clk 0:02:59.6]} 2. e3 {[%clk 0:02:59.1]} 2...
d5 {[%clk 0:02:57.5]} 3. b3 {[%clk 0:02:58.8]} 3... a6 {[%clk 0:02:56.8]} 4. Bb2
{[%clk 0:02:58.1]} 4... Nc6 {[%clk 0:02:56.7]} 5. Be2 {[%clk 0:02:56]} 5... Nf6
{[%clk 0:02:52]} 6. O-O {[%clk 0:02:55]} 6... Bg4 {[%clk 0:02:49.7]} 7. h3
{[%clk 0:02:52]} 7... Bh5 {[%clk 0:02:48.9]} 8. c4 {[%clk 0:02:39.6]} 8... dxc4
{[%clk 0:02:35.8]} 9. bxc4 {[%clk 0:02:38.8]} 9... e6 {[%clk 0:02:36]} 10. Nc3
{[%clk 0:02:05.6]} 10... Be7 {[%clk 0:02:34.6]} 11. Rb1 {[%clk 0:02:05.3]} 11...
O-O {[%clk 0:02:33.8]} 12. Ba1 {[%clk 0:02:05.6]} 12... Rb8 {[%clk 0:02:26.3]}
13. Na4 {[%clk 0:02:00.2]} 13... Bg6 {[%clk 0:02:12.7]} 14. d3 {[%clk
0:01:57.4]} 14... b5 {[%clk 0:01:37.8]} 15. Bxf6 {[%clk 0:01:49.4]} 15... gxf6
{[%clk 0:01:37.5]} 16. cxb5 {[%clk 0:01:48.8]} 16... axb5 {[%clk 0:01:38.1]} 17.
Nc3 {[%clk 0:01:49.2]} 17... Qa5 {[%clk 0:01:32.5]} 18. Rc1 {[%clk 0:01:44.8]}
18... Rfd8 {[%clk 0:01:23.7]} 19. a4 {[%clk 0:01:29.2]} 19... c4 {[%clk
0:01:05.3]} 20. d4 {[%clk 0:00:51.4]} 20... b4 {[%clk 0:01:03.8]} 21. Nb5 {[%clk
0:00:51.5]} 21... c3 {[%clk 0:01:04.2]} 22. Bc4 {[%clk 0:00:49.6]} 22... Qb6
{[%clk 0:00:47.4]} 23. Nh4 {[%clk 0:00:39.1]} 23... Na5 {[%clk 0:00:44.5]} 24.
Nxg6 {[%clk 0:00:38]} 24... hxg6 {[%clk 0:00:45.4]} 25. Bd3 {[%clk 0:00:38.3]}
25... Kg7 {[%clk 0:00:34.6]} 26. h4 {[%clk 0:00:37.8]} 26... Rh8 {[%clk
0:00:32.3]} 27. g3 {[%clk 0:00:37.8]} 27... Rbc8 {[%clk 0:00:31.7]} 28. Qf3
{[%clk 0:00:35]} 28... Nb3 {[%clk 0:00:29.8]} 29. Rcd1 {[%clk 0:00:23]} 29...
Nd2 {[%clk 0:00:29.3]} 30. Rxd2 {[%clk 0:00:23.5]} 30... cxd2 {[%clk 0:00:29.6]}
31. Qe2 {[%clk 0:00:24.4]} 31... Qa5 {[%clk 0:00:26.1]} 32. Qxd2 {[%clk
0:00:24.8]} 32... Qxa4 {[%clk 0:00:26.4]} 33. Qb2 {[%clk 0:00:22.4]} 33... Ra8
{[%clk 0:00:19]} 34. Rc1 {[%clk 0:00:16.6]} 34... Rhc8 {[%clk 0:00:17.5]} 35.
Nc7 {[%clk 0:00:14]} 35... Rab8 {[%clk 0:00:14.4]} 36. Ba6 {[%clk 0:00:07.8]}
36... Rd8 {[%clk 0:00:10.8]} 37. h5 {[%clk 0:00:06.9]} 37... Qa3 {[%clk
0:00:07.2]} 38. Qb1 {[%clk 0:00:05.9]} 38... gxh5 {[%clk 0:00:06.8]} 39. Bc4
{[%clk 0:00:04.7]} 39... Rd6 {[%clk 0:00:03.2]} 40. Nb5 {[%clk 0:00:02.1]} 40...
Rxb5 {[%clk 0:00:02.5]} 41. Bxb5 {[%clk 0:00:03]} 41... Rb6 {[%clk 0:00:02.7]}
42. Rc7 {[%clk 0:00:02.9]} 42... b3 {[%clk 0:00:02.6]} 43. Bc4 {[%clk
0:00:02.2]} 43... b2 {[%clk 0:00:03]} 44. Kg2 {[%clk 0:00:02.8]} 44... Qa1
{[%clk 0:00:02.6]} 45. Bd3 {[%clk 0:00:02.6]} 45... Bd6 {[%clk 0:00:02.4]} 46.
Rd7 {[%clk 0:00:02.9]} 46... Qxb1 {[%clk 0:00:02.1]} 47. Bxb1 {[%clk 0:00:03.6]}
47... Bb4 {[%clk 0:00:02.7]} 48. Rc7 {[%clk 0:00:03.7]} 48... Bd2 {[%clk
0:00:02.2]} 49. Rc2 {[%clk 0:00:03.2]} 49... Bc1 {[%clk 0:00:03]} 50. Rc7 {[%clk
0:00:03.7]} 50... Ra6 {[%clk 0:00:03.6]} 51. Rb7 {[%clk 0:00:03.9]} 51... Kf8
{[%clk 0:00:04]} 52. Kh3 {[%clk 0:00:03.7]} 52... f5 {[%clk 0:00:03.8]} 53. Kh4
{[%clk 0:00:03.7]} 53... Ra1 {[%clk 0:00:02.9]} 54. Bc2 {[%clk 0:00:03.9]} 54...
Ra3 {[%clk 0:00:02.4]} 55. Kg5 {[%clk 0:00:03.4]} 55... Kg7 {[%clk 0:00:02.1]}
56. Bb1 {[%clk 0:00:03.1]} 56... Ra1 {[%clk 0:00:02.4]} 57. Bc2 {[%clk
0:00:03.4]} 57... Ra3 {[%clk 0:00:03]} 58. Kxh5 {[%clk 0:00:03.6]} 58... Rc3
{[%clk 0:00:03.7]} 59. Bb1 {[%clk 0:00:04]} 59... Rc8 {[%clk 0:00:03.9]} 60. Kg5
{[%clk 0:00:04.1]} 60... Rh8 {[%clk 0:00:03.5]} 61. Ba2 {[%clk 0:00:04.1]} 61...
Rh6 {[%clk 0:00:04.1]} 62. Kf4 {[%clk 0:00:04.2]} 62... Kf6 {[%clk 0:00:03.7]}
63. d5 {[%clk 0:00:03.4]} 63... e5+ {[%clk 0:00:03.8]} 64. Kf3 {[%clk
0:00:04.1]} 64... e4+ {[%clk 0:00:02.9]} 65. Kf4 {[%clk 0:00:03.4]} 65... Rh2
{[%clk 0:00:02.6]} 66. Rb6+ {[%clk 0:00:03.3]} 66... Ke7 {[%clk 0:00:03]} 67.
d6+ {[%clk 0:00:03.2]} 67... Kd7 {[%clk 0:00:03.4]} 68. Ke5 {[%clk 0:00:04.1]}
68... Rxf2 {[%clk 0:00:03.7]} 69. Rb7+ {[%clk 0:00:04.5]} 69... Kc8 {[%clk
0:00:04.5]} 70. d7+ {[%clk 0:00:04.6]} 70... Kd8 {[%clk 0:00:04.9]} 71. Kd6
{[%clk 0:00:03.4]} 71... Rd2+ {[%clk 0:00:05.2]} 72. Bd5 {[%clk 0:00:04.2]}
72... b1=Q {[%clk 0:00:05.6]} 73. Rxb1 {[%clk 0:00:03]} 73... Ba3+ {[%clk
0:00:06.1]} 74. Kc6 {[%clk 0:00:03.3]} 74... Rc2+ {[%clk 0:00:06.3]} 75. Kb5
{[%clk 0:00:03.6]} 75... Rc5+ {[%clk 0:00:06]} 76. Ka4 {[%clk 0:00:04.1]} 76...
Rxd5 {[%clk 0:00:06.7]} 77. Kxa3 {[%clk 0:00:05]} 77... Rd3+ {[%clk 0:00:07.3]}
78. Kb4 {[%clk 0:00:05.6]} 78... Rxe3 {[%clk 0:00:07.8]} 79. Kc5 {[%clk
0:00:03.8]} 79... Kxd7 {[%clk 0:00:08.3]} 80. Kd5 {[%clk 0:00:04.7]} 80... Rxg3
{[%clk 0:00:06.8]} 81. Ke5 {[%clk 0:00:03.7]} 81... Rf3 {[%clk 0:00:06.7]} 82.
Rd1+ {[%clk 0:00:03.7]} 82... Kc6 {[%clk 0:00:07.2]} 83. Rc1+ {[%clk 0:00:03.4]}
83... Kb5 {[%clk 0:00:07.2]} 84. Kd5 {[%clk 0:00:02.8]} 84... Kb4 {[%clk
0:00:06.2]} 85. Kd4 {[%clk 0:00:03.4]} 85... Kb3 {[%clk 0:00:06.7]} 86. Rb1+
{[%clk 0:00:01.4]} 86... Kc2 {[%clk 0:00:07.1]} 87. Ra1 {[%clk 0:00:02.1]} 87...
Rd3+ {[%clk 0:00:06.9]} 88. Kc4 {[%clk 0:00:01.5]} 88... Rd2 {[%clk 0:00:05.5]}
0-1